bitfinex-derivatives/quotes_BNBF0:USTF0_20250116
["timestamp","ask_amount","ask_price","bid_price","bid_amount"]
[1737017475521,1.03041608,705.75,703.59,0.26094421]
[1737017475722,1.03041608,705.36,703.74,1.05198806]
[1737017476219,1.03041608,705.36,703.75,0.26094421]
[1737017476619,1.03041608,705.3,703.67,1.05198806]
[1737017476923,1.03041608,705.3,703.68,0.26098736]
[1737017477417,1.03041608,705.32,703.68,0.26098736]
[1737017477622,1.03041608,705.32,703.69,0.26098736]
[1737017477921,1.03041608,705.32,703.7,0.26098736]
[1737017478115,1.03041608,705.32,703.58,0.26098736]
[1737017478321,1.03041608,705.33,703.6,1.05198806]
[1737017478518,1.03041608,705.33,703.61,0.26098736]
[1737017479117,1.03041608,705.33,703.62,0.26092388]
[1737017479320,1.03041608,705.33,703.61,0.86489337]
[1737017479521,1.03041608,705.43,703.75,1.05198806]
[1737017479923,1.03041608,705.43,703.76,0.26091317]
[1737017480619,1.03041608,705.45,703.76,0.26091317]
[1737017481724,1.03041608,705.69,703.91,1.05198806]
[1737017481924,1.03041608,705.69,703.92,0.26091317]
[1737017482826,1.03041608,705.73,703.92,0.26091317]
[1737017483026,1.03041608,705.73,703.93,0.26091317]
[1737017483324,1.03041608,705.73,703.87,1.05198806]
[1737017483521,1.03041608,705.73,703.88,0.26088424]
[1737017483727,1.03041608,705.65,703.88,0.26088424]
[1737017483921,1.03041608,705.65,703.72,1.05198806]
[1737017483922,1.03041608,705.65,703.73,0.26088424]
[1737017484127,1.03041608,705.65,703.89,0.26088424]
[1737017484327,1.03041608,705.65,703.74,0.26088424]
[1737017484522,1.03041608,705.64,703.75,0.26088424]
[1737017485030,1.03041608,705.64,703.76,0.26091746]
[1737017485227,1.03041608,705.64,703.7,0.26091746]
[1737017485429,1.03041608,705.46,703.71,0.26091746]
[1737017485827,1.03041608,705.46,703.71,1.30391746]
[1737017486031,1.03041608,705.46,703.72,0.26091746]
[1737017486828,1.03041608,705.45,703.72,0.26091746]
[1737017487730,1.03041608,705.45,703.73,0.26088049]
[1737017488229,1.2364993,705.7,703.76,1.05198806]
[1737017488230,1.03041608,705.6,703.76,1.05198806]
[1737017488623,1.03041608,705.6,703.77,0.26088049]
[1737017489028,1.03041608,705.74,703.77,0.26088049]
[1737017489232,1.03041608,705.74,703.78,0.26088049]
[1737017489425,1.03041608,705.74,703.71,0.26088049]
[1737017489626,1.03041608,705.74,703.72,0.26088049]
[1737017489826,1.03041608,705.71,703.71,0.26088049]
[1737017490027,1.03041608,705.71,703.72,0.26088049]
[1737017490230,1.03041608,705.71,703.73,0.26088049]
[1737017490427,1.03041608,705.71,703.74,0.26088049]
[1737017490627,1.03041608,705.71,703.65,1.05198806]
[1737017490934,1.03041608,705.55,703.73,1.05198806]
[1737017491835,1.03041608,705.55,703.74,0.26097252]
[1737017492129,1.03041608,705.65,703.57,1.112]
[1737017492130,1.03041608,705.73,703.75,0.26097756]
[1737017492335,1.03041608,705.73,703.58,0.26097756]
[1737017492632,1.03041608,705.73,703.57,1.112]
[1737017492633,1.03041608,705.73,703.59,0.26098618]
[1737017492829,1.03041608,705.88,703.59,0.26098618]
[1737017492830,1.03041608,705.31,703.59,0.26098618]
[1737017493034,1.03041608,705.31,703.58,0.26098618]
[1737017493235,1.03041608,705.31,703.57,1.112]
[1737017493436,1.03041608,705.31,703.58,0.26098981]
[1737017495036,1.03041608,705.33,703.58,0.26098981]
[1737017495935,1.03041608,705.4,703.58,0.26098981]
[1737017496136,1.03041608,705.4,703.59,0.26098804]
[1737017496328,1.03041608,705.4,703.58,0.26098804]
[1737017496529,1.03041608,705.4,703.6,0.26098804]
[1737017496734,1.03041608,705.4,703.61,0.26098804]
[1737017496934,1.03041608,705.4,703.57,1.112]
[1737017496935,1.03041608,705.37,703.57,1.112]
[1737017497136,1.03041608,705.37,703.58,0.26099146]
[1737017497530,1.03041608,705.37,703.57,1.112]
[1737017497734,2.10376618,706.02,703.57,1.112]
[1737017497735,1.03041608,705.38,703.57,1.112]
[1737017498839,1.03041608,705.34,703.57,1.112]
[1737017499840,1.03041608,705.37,703.57,1.112]
[1737017500841,1.03041608,705.34,703.57,1.112]
[1737017501543,1.03041608,705.34,703.58,0.26099288]
[1737017501743,2.10376618,706.01,703.39,1.05198806]
[1737017501744,1.03041608,705.35,703.59,0.26097102]
[1737017501943,1.03041608,705.35,703.4,0.86505903]
[1737017502139,1.03041608,705.35,703.6,0.26097102]
[1737017502344,1.03041608,705.35,703.61,0.26097102]
[1737017502545,1.03041608,705.35,703.4,0.26097102]
[1737017502743,1.03041608,705.22,703.61,1.34]
[1737017502938,1.03041608,705.22,703.62,0.26097102]
[1737017503843,1.03041608,705.2,703.62,0.26097102]
[1737017504445,1.03041608,705.2,703.61,1.34]
[1737017504645,0.2836115,705.19,703.62,0.26097177]
[1737017505250,0.2836115,705.19,703.63,0.26097158]
[1737017505546,0.2836115,705.19,703.64,0.26097158]
[1737017505746,0.2836115,705.19,703.65,0.26097158]
[1737017505947,0.2836115,705.19,703.66,0.26097158]
[1737017506247,0.2836115,705.19,703.67,0.26097158]
[1737017506440,0.2836115,705.19,703.62,1.05198806]
[1737017506441,0.2836115,705.19,703.63,0.26097158]
[1737017506644,0.2836115,705.19,703.64,0.26097158]
[1737017506845,0.2836115,705.19,703.65,0.26097158]
[1737017507044,0.2836115,705.19,703.66,0.26097158]
[1737017507244,0.2836115,705.19,703.61,1.34]
[1737017507443,0.2836115,705.19,703.62,0.26101548]
[1737017507744,1.03041608,705.18,703.61,1.34]
[1737017508653,0.2836115,705.19,703.61,1.34]
[1737017514156,0.2836115,705.19,703.62,0.26098192]
[1737017515857,0.2836115,705.19,703.63,0.26096519]
[1737017516054,0.2836115,705.19,703.62,0.26096519]
[1737017516249,0.2836115,705.19,703.63,0.26096519]
[1737017516456,0.2836115,705.19,703.62,0.26096519]
[1737017516758,0.2836115,705.19,703.64,0.26096519]
[1737017516953,0.2836115,705.19,703.63,0.26096519]
[1737017517360,0.2836115,705.19,703.62,0.86491556]
[1737017517560,0.2836115,705.19,703.74,1.05880164]
[1737017517759,0.2836115,705.19,703.75,0.26096519]
[1737017518464,0.2836115,705.19,703.78,1.05880164]
[1737017518657,0.2836115,705.19,703.79,0.26091516]
[1737017519659,0.2836115,705.19,703.78,1.05880164]
[1737017520062,0.2836115,705.19,703.62,1.05880164]
[1737017520261,0.2836115,705.19,703.63,0.26096735]
[1737017520855,0.2836115,705.19,703.62,1.05880164]
[1737017521058,0.2836115,705.19,703.63,0.26099418]
[1737017521457,1.03642544,705.18,703.63,0.26099418]
[1737017521659,1.03642544,705.18,703.62,0.26099418]
[1737017521861,1.03642544,705.18,703.63,0.26099418]
[1737017522057,1.03642544,705.18,703.64,0.26099418]
[1737017522262,1.03642544,705.18,703.65,0.26099418]
[1737017522462,1.03642544,705.18,703.66,0.26099418]
[1737017522662,1.03642544,705.18,703.67,0.26099418]
[1737017522863,1.03642544,705.18,703.62,0.26099418]
[1737017523163,1.03642544,705.18,703.61,1.34]
[1737017523563,0.2836115,705.19,703.61,1.34]
[1737017529270,0.2836115,705.19,703.62,0.26103103]
[1737017529673,0.2836115,705.19,703.4,1.93280164]
[1737017529674,1.03642544,705.07,703.63,0.26103103]
[1737017529973,1.03642544,705.07,703.64,0.26103103]
[1737017530171,1.03642544,705.07,703.51,0.26103103]
[1737017530472,1.03642544,705.07,703.52,0.26103103]
[1737017530674,1.03642544,705.1,703.62,1.05880164]
[1737017530869,1.03642544,705.1,703.63,0.26103103]
[1737017531569,1.03642544,705.1,703.64,0.26097951]
[1737017531768,0.2836115,705.19,703.64,0.26097951]
[1737017532074,0.2836115,705.19,703.65,0.26097951]
[1737017532373,0.2836115,705.19,703.59,0.26097951]
[1737017532566,0.2836115,705.19,703.66,0.26097951]
[1737017532966,0.2836115,705.19,703.67,0.26097951]
[1737017533766,0.2836115,705.19,703.61,0.26097951]
[1737017534074,0.2836115,705.19,703.58,1.05880164]
[1737017534374,0.2836115,705.19,703.61,1.125]
[1737017537074,1.03642544,705.18,703.61,1.125]
[1737017538173,1.03642544,705.12,703.61,1.125]
[1737017539473,0.2836115,705.19,703.61,1.125]
[1737017540477,1.03642544,705.02,703.61,1.125]
[1737017541377,0.2836115,705.19,703.61,1.125]
[1737017541378,1.03642544,705.05,703.61,1.125]
[1737017542378,0.2836115,705.19,703.61,1.125]
[1737017542379,1.03642544,705.04,703.61,1.125]
[1737017542779,1.03642544,705.04,703.61,2.246]
[1737017543281,0.28367989,705.02,703.61,2.246]
[1737017543475,1.32010533,705.02,703.61,2.246]
[1737017544484,0.28367989,705.02,703.61,2.246]
[1737017555577,1.03642544,704.98,703.61,2.246]
[1737017557283,0.28367989,705.02,703.61,2.246]
[1737017558181,1.32010533,705.02,703.61,2.246]
[1737017560388,0.28367989,705.02,703.61,2.246]
[1737017566386,1.03642544,705.0,703.61,2.246]
[1737017567294,1.03642544,704.93,703.61,2.246]
[1737017568494,1.03642544,704.67,703.61,2.246]
[1737017569701,1.03642544,704.82,703.61,2.246]
[1737017570800,1.03642544,704.84,703.61,2.246]
[1737017571801,1.03642544,704.94,703.61,2.246]
[1737017572797,1.03642544,704.78,703.61,2.246]
[1737017573903,1.03642544,704.75,703.61,2.246]
[1737017574098,0.28379663,704.73,703.61,2.246]
[1737017574904,1.32022207,704.73,703.61,2.246]
[1737017576304,0.28379663,704.73,703.61,2.246]
[1737017577406,1.03642544,704.71,703.61,2.246]
[1737017578208,1.03642544,704.67,703.61,2.246]
[1737017579908,1.48359203,704.66,703.61,2.246]
[1737017586808,1.03642544,704.57,703.61,2.246]
[1737017588113,1.03642544,704.59,703.61,2.246]
[1737017588814,1.48359203,704.66,703.61,2.246]
[1737017591011,1.03642544,704.65,703.61,2.246]
[1737017592116,1.48359203,704.66,703.61,2.246]
[1737017595219,1.03642544,704.65,703.61,2.246]
[1737017596215,1.03642544,704.52,703.61,2.246]
[1737017597514,1.03642544,704.49,703.61,2.246]
[1737017599317,1.03642544,704.53,703.61,2.246]
[1737017600129,1.03642544,704.68,703.61,2.246]
[1737017600820,0.28379663,704.73,703.61,2.246]
[1737017600821,1.03642544,704.61,703.61,2.246]
[1737017601724,0.28385302,704.59,703.61,2.246]
[1737017610429,0.28385302,704.59,703.62,0.26101858]
[1737017610625,1.03642544,705.19,703.62,0.52201759]
[1737017610930,0.28361955,705.17,703.63,0.26099901]
[1737017611830,0.28361955,705.17,703.63,2.21199901]
[1737017612230,0.28361955,705.17,703.64,0.26099901]
[1737017612432,0.28361955,705.17,703.64,0.54523526]
[1737017613231,0.28361955,705.17,703.65,0.26090784]
[1737017613423,0.28361955,705.17,703.64,0.54514409]
[1737017613729,0.28361955,705.17,703.65,0.26090784]
[1737017614331,0.28361955,705.17,703.64,0.28423625]
[1737017624746,0.28361955,705.17,703.65,0.26085843]
[1737017624944,0.28361955,705.17,703.65,1.39085843]
[1737017625347,0.28361955,705.17,703.65,1.13]
[1737017625542,0.28361955,705.17,703.66,0.26085326]
[1737017625948,0.28361955,705.17,703.66,1.63585326]
[1737017626141,0.28361955,705.17,703.67,0.26085326]
[1737017626346,0.28361955,705.17,703.67,0.86468935]
[1737017626841,0.28361955,705.17,703.67,0.26085326]
[1737017627342,0.28361955,705.17,703.68,0.26085326]
[1737017627542,0.28361955,705.17,703.69,0.26085326]
[1737017627844,0.28361955,705.17,703.7,0.26085326]
[1737017628049,0.28361955,705.17,703.67,0.86468439]
[1737017628250,0.28361955,705.17,703.68,0.86467176]
[1737017628450,0.28361955,705.17,703.69,0.26084881]
[1737017628748,0.28361955,705.17,703.68,0.86467371]
[1737017628942,0.28361955,705.17,703.66,1.375]
[1737017629147,0.28361955,705.17,703.67,0.86466505]
[1737017629447,0.28361955,705.17,703.68,0.2608465]
[1737017629649,0.28361955,705.17,703.69,0.2608465]
[1737017629848,0.28361955,705.17,703.7,0.2608465]
[1737017630046,0.28361955,705.17,703.71,0.2608465]
[1737017630244,0.28361955,705.17,703.72,0.2608465]
[1737017630450,0.28361955,705.17,703.73,0.2608465]
[1737017630650,0.28361955,705.17,703.74,0.2608465]
[1737017630849,0.28361955,705.17,703.75,0.2608465]
[1737017631050,0.28361955,705.17,703.68,0.2608465]
[1737017631251,0.28361955,705.17,703.66,1.375]
[1737017631452,0.28361955,705.17,703.69,0.26087781]
[1737017631645,0.28361955,705.17,703.67,0.26087781]
[1737017631850,0.28361955,705.17,703.7,0.26087781]
[1737017632151,0.28361955,705.17,703.68,0.26087781]
[1737017632348,0.28361955,705.17,703.69,0.26087781]
[1737017632760,0.28361955,705.17,703.7,0.26087781]
[1737017633543,0.28361955,705.17,703.67,0.26087781]
[1737017633749,0.28361955,705.17,703.71,0.26087781]
[1737017633946,0.28361955,705.17,703.72,0.26087781]
[1737017634453,0.28361955,705.17,703.73,0.26094661]
[1737017634647,0.28361955,705.17,703.67,0.26094661]
[1737017634852,0.28361955,705.17,703.74,0.26094661]
[1737017635047,0.28361955,705.17,703.75,0.26094661]
[1737017635254,0.28361955,705.17,703.67,0.26094661]
[1737017635449,0.28361955,705.17,703.68,0.26094661]
[1737017635755,0.28361955,705.17,703.69,0.26094661]
[1737017635953,0.28361955,705.17,703.67,0.26094661]
[1737017636154,0.28361955,705.17,703.68,0.26094661]
[1737017636354,0.28361955,705.17,703.69,0.26094661]
[1737017636556,0.28361955,705.17,703.67,0.26094661]
[1737017636855,0.28361955,705.17,703.68,0.26094661]
[1737017637054,0.28361955,705.17,703.67,0.26094661]
[1737017637351,0.28361955,705.17,703.68,0.26094661]
[1737017639257,0.28361955,705.17,703.69,0.26094661]
[1737017639449,0.28361955,705.17,703.68,0.26094661]
[1737017639653,0.28361955,705.17,703.69,0.26094661]
[1737017639853,0.28361955,705.17,703.68,0.26094661]
[1737017640157,0.28361955,705.17,703.69,0.26094661]
[1737017640355,0.28361955,705.17,703.7,0.26094661]
[1737017640660,0.28361955,705.17,703.71,0.26094661]
[1737017640852,0.28361955,705.17,703.72,0.26094661]
[1737017641054,0.28361955,705.17,703.73,0.26094661]
[1737017641255,0.28361955,705.17,703.8,1.05880164]
[1737017641663,0.28361955,705.17,703.81,0.8648711]
[1737017641960,0.28361955,705.17,703.82,0.26094661]
[1737017642155,0.28361955,705.17,703.82,1.43094661]
[1737017642360,0.28361955,705.17,703.83,0.26094661]
[1737017642561,0.28361955,705.17,703.9,1.05880164]
[1737017643061,0.28361955,705.17,703.91,0.26094661]
[1737017643964,0.28361955,705.17,703.91,1.31974825]
[1737017644158,0.28361955,705.17,703.92,0.26094661]
[1737017644863,0.28361955,705.17,703.93,0.2608819]
[1737017645266,0.28361955,705.17,704.07,1.05880164]
[1737017645763,0.28361955,705.17,704.08,0.26087938]
[1737017646163,0.28361955,705.17,704.1,1.05880164]
[1737017646360,0.28361955,705.17,704.11,0.26087938]
[1737017647565,0.28361955,705.17,704.12,1.05880164]
[1737017648864,0.28361955,705.17,704.02,1.05880164]
[1737017650070,0.28361955,705.17,703.9,1.05880164]
[1737017650360,0.28361955,705.17,703.91,0.26092852]
[1737017650560,0.28361955,705.17,703.91,0.26091814]
[1737017651365,0.28361955,705.17,704.02,1.05880164]
[1737017651560,0.28361955,705.17,704.03,0.26091814]
[1737017651960,0.28361955,705.17,704.02,1.05880164]
[1737017652663,0.28361955,705.17,704.0,1.05880164]
[1737017653465,0.28361955,705.17,703.82,1.17]
[1737017653466,0.28361955,705.17,703.86,1.05880164]
[1737017653666,0.28361955,705.17,703.87,0.26097704]
[1737017654663,0.28361955,705.17,703.87,1.31977868]
[1737017654865,0.28361955,705.17,703.88,0.26097704]
[1737017655262,0.28361955,705.17,703.89,0.26096955]
[1737017655464,0.28361955,705.17,703.88,0.26096955]
[1737017655666,0.28361955,705.17,703.9,0.26096955]
[1737017655861,0.28361955,705.17,703.84,1.05880164]
[1737017656167,0.28361955,705.17,703.85,0.26097359]
[1737017656763,0.28361955,705.17,703.83,0.26097359]
[1737017656965,0.28361955,705.17,703.84,0.26097359]
[1737017657170,0.28361955,705.17,703.85,0.26097359]
[1737017657371,0.28361955,705.17,703.86,0.26097359]
[1737017657566,0.28361955,705.17,703.87,0.26097359]
[1737017657770,0.28361955,705.17,703.88,0.26097359]
[1737017657971,0.28361955,705.17,703.89,0.26097359]
[1737017658167,0.28361955,705.17,703.82,1.17]
[1737017658368,0.28361955,705.17,703.83,0.26097461]
[1737017658770,0.28361955,705.17,703.82,1.958]
[1737017659069,0.28361955,705.17,703.83,0.26097847]
[1737017660572,0.28361955,705.17,703.82,0.788]
[1737017661275,0.28361955,705.17,703.82,1.7]
[1737017667080,1.32004499,705.17,703.82,1.7]
[1737017668380,1.03642544,705.1,703.82,1.7]
[1737017669280,1.03642544,705.13,703.82,1.7]
[1737017670281,1.03642544,705.08,703.82,1.7]
[1737017671281,1.03642544,705.16,703.82,1.7]
[1737017671677,0.28363161,705.14,703.82,1.7]
[1737017672974,1.03642544,705.06,703.82,1.7]
[1737017673876,0.28367184,705.04,703.82,1.7]
[1737017691791,1.32009728,705.04,703.82,1.7]
[1737017692693,1.03642544,705.01,703.82,1.7]
[1737017693493,0.28367184,705.04,703.82,1.7]
[1737017694396,1.03642544,705.03,703.82,1.7]
[1737017695191,1.03642544,704.96,703.82,1.7]
[1737017697791,1.03642544,704.97,703.82,1.7]
[1737017698897,1.03642544,704.94,703.82,1.7]
[1737017699701,1.03642544,704.91,703.82,1.7]
[1737017700599,1.03642544,704.89,703.82,1.7]
[1737017702899,1.03642544,704.95,703.82,1.7]
[1737017704200,1.03642544,704.92,703.82,1.7]
[1737017705202,1.03642544,704.82,703.82,1.7]
[1737017706608,0.28376844,704.8,703.82,1.7]
[1737017715908,1.32019388,704.8,703.82,1.7]
[1737017716615,0.28376844,704.8,703.82,1.7]
[1737017717712,1.03642544,704.79,703.82,1.7]
[1737017719018,0.28376844,704.8,703.82,1.7]
[1737017724819,1.03642544,705.74,703.82,1.7]
[1737017725020,0.28339851,705.72,703.83,0.26091642]
[1737017725321,1.03642544,705.64,703.83,0.26091642]
[1737017725623,1.03642544,705.64,703.57,1.05880164]
[1737017725819,1.03642544,705.64,703.58,0.54519627]
[1737017726019,1.03642544,705.64,703.59,0.26093578]
[1737017726224,1.03642544,705.63,703.59,0.26093578]
[1737017726414,1.03642544,705.63,703.59,1.27293578]
[1737017726613,1.03642544,705.63,703.6,0.26093578]
[1737017727119,1.03642544,705.54,703.6,0.26093578]
[1737017728021,1.03642544,705.44,703.6,0.86490164]
[1737017728419,1.03642544,705.44,703.59,2.083]
[1737017728722,1.03642544,705.44,703.61,0.86485111]
[1737017728920,1.03642544,705.44,703.62,0.86484994]
[1737017729121,1.03642544,705.6,703.63,0.26090697]
[1737017729416,1.03642544,705.6,703.63,0.60387441]
[1737017729614,1.03642544,705.6,703.64,0.26088884]
[1737017729820,1.03642544,705.6,703.64,0.86479425]
[1737017730022,0.28339851,705.72,703.65,0.86479425]
[1737017730023,1.03642544,705.68,703.65,0.86479425]
[1737017730214,1.03642544,705.68,703.62,0.86479425]
[1737017730417,1.03642544,705.68,703.63,0.86479425]
[1737017730617,1.03642544,705.68,703.64,0.26088884]
[1737017730818,1.03642544,705.68,703.65,0.26088884]
[1737017731018,0.28339851,705.72,703.66,0.26088884]
[1737017731221,0.28339851,705.72,703.67,0.26088884]
[1737017731417,0.28339851,705.72,703.62,0.26088884]
[1737017731614,0.28339851,705.72,703.63,0.26088884]
[1737017731822,0.28339851,705.72,703.64,0.26088884]
[1737017732023,0.28339851,705.72,703.65,0.26088884]
[1737017732224,0.28339851,705.72,703.66,0.26088884]
[1737017732425,0.28339851,705.72,703.67,0.26088884]
[1737017732720,0.28339851,705.72,703.68,0.26088884]
[1737017733423,0.28339851,705.72,703.69,0.26088884]
[1737017734220,0.28339851,705.72,703.61,0.26088884]
[1737017734522,0.28339851,705.72,703.7,0.26088884]
[1737017735121,0.28339851,705.72,703.71,0.26088884]
[1737017735523,0.28339851,705.72,703.61,0.26088884]
[1737017735725,0.28339851,705.72,703.62,0.26088884]
[1737017736019,0.28339851,705.72,703.63,0.26088884]
[1737017736226,0.28339851,705.72,703.64,0.26088884]
[1737017736526,0.28339851,705.72,703.65,0.26088884]
[1737017736716,0.28339851,705.72,703.66,0.26088884]
[1737017736916,0.28339851,705.72,703.67,0.26088884]
[1737017737221,0.28339851,705.72,703.68,0.26079069]
[1737017737523,0.28339851,705.72,703.69,0.26079069]
[1737017737721,0.28339851,705.72,703.7,0.26079069]
[1737017737923,0.28339851,705.72,703.59,2.083]
[1737017738119,0.28339851,705.72,703.71,0.26079296]
[1737017738321,0.28339851,705.72,703.72,0.26079296]
[1737017738726,0.28339851,705.72,703.73,0.26079296]
[1737017738925,0.28339851,705.72,703.61,0.26079296]
[1737017739125,0.28339851,705.72,703.74,0.26079296]
[1737017739325,0.28339851,705.72,703.62,0.2607767]
[1737017739523,0.28339851,705.72,703.75,0.2607767]
[1737017739725,0.28339851,705.72,703.63,0.2607767]
[1737017739918,0.28339851,705.72,703.64,0.2607767]
[1737017740227,0.28339851,705.72,703.65,0.26073723]
[1737017740626,0.28339851,705.72,703.66,0.26073723]
[1737017740827,0.28339851,705.72,703.67,0.26073723]
[1737017741022,0.28339851,705.72,703.68,0.26073723]
[1737017741328,0.28339851,705.72,703.59,2.083]
[1737017741329,0.28339851,705.72,703.69,0.26073723]
[1737017741627,0.28339851,705.72,703.7,0.26073723]
[1737017741827,0.28339851,705.72,703.71,0.26073723]
[1737017742027,0.28339851,705.72,703.72,0.26073723]
[1737017742229,0.28339851,705.72,703.73,0.26073723]
[1737017742428,0.28339851,705.72,703.62,0.60359489]
[1737017742723,0.28339851,705.72,703.63,0.86433212]
[1737017742926,0.28339851,705.72,703.63,0.86422681]
[1737017743138,0.28339851,705.72,703.64,0.26070282]
[1737017743327,0.28339851,705.72,703.64,0.86422681]
[1737017743528,0.28339851,705.72,703.6,0.26070282]
[1737017743728,0.28339851,705.72,703.65,0.26070282]
[1737017743925,0.28339851,705.72,703.61,0.26070282]
[1737017744129,0.28339851,705.72,703.66,0.26070282]
[1737017744330,0.28339851,705.72,703.59,2.083]
[1737017744331,0.28339851,705.72,703.67,0.26070282]
[1737017744523,0.28339851,705.72,703.6,0.26070282]
[1737017744725,0.28339851,705.72,703.59,2.083]
[1737017744726,0.28339851,705.72,703.61,0.26070282]
[1737017744923,0.28339851,705.72,703.6,0.26070282]
[1737017745124,0.28339851,705.72,703.62,0.26070282]
[1737017745329,0.28339851,705.72,703.63,0.26070282]
[1737017745528,0.28339851,705.72,703.6,0.26070282]
[1737017745731,0.28339851,705.72,703.64,0.26076851]
[1737017745927,0.28339851,705.72,703.61,0.26076851]
[1737017746129,0.28339851,705.72,703.65,0.26076851]
[1737017746327,0.28339851,705.72,703.62,0.26076851]
[1737017746530,0.28339851,705.72,703.63,0.26075754]
[1737017746930,0.28339851,705.72,703.64,0.26075754]
[1737017747431,0.28339851,705.72,703.65,0.26075754]
[1737017747827,0.28339851,705.72,703.66,0.26075754]
[1737017748034,0.28339851,705.72,703.67,0.26075754]
[1737017748234,0.28339851,705.72,703.68,0.26075754]
[1737017748628,0.28339851,705.72,703.6,0.86423444]
[1737017748826,0.28339851,705.72,703.69,0.26075754]
[1737017749029,0.28339851,705.72,703.61,0.6034917]
[1737017749233,0.28339851,705.72,703.61,0.86417898]
[1737017749428,0.28339851,705.72,703.62,0.86422098]
[1737017749628,0.28339851,705.72,703.78,1.04811293]
[1737017750227,0.28339851,705.72,703.79,0.86421897]
[1737017750427,0.28339851,705.72,703.89,1.04811293]
[1737017750735,0.28339851,705.72,703.9,0.86421897]
[1737017751031,0.28339851,705.72,703.91,0.26070049]
[1737017751236,0.28339851,705.72,703.92,0.26070049]
[1737017751428,0.28339851,705.72,703.93,0.26070049]
[1737017751629,0.28339851,705.72,703.9,0.26070049]
[1737017751834,0.28339851,705.72,703.91,0.26070049]
[1737017752036,0.28339851,705.72,703.75,0.86438127]
[1737017752236,0.28339851,705.72,703.92,0.26070049]
[1737017752534,0.28339851,705.72,703.93,0.26070049]
[1737017752836,0.28339851,705.72,703.94,0.26070049]
[1737017753430,0.28339851,705.72,703.95,0.26070049]
[1737017753735,0.28339851,705.72,703.96,0.26070049]
[1737017754235,0.28339851,705.72,703.97,0.26074161]
[1737017754436,0.28339851,705.72,703.92,0.737]
[1737017754437,0.28339851,705.72,703.99,1.04811293]
[1737017755035,0.28339851,705.72,704.0,0.26072116]
[1737017755633,0.28339851,705.72,703.98,0.26072116]
[1737017755834,0.28339851,705.72,703.99,0.26072116]
[1737017756030,0.28339851,705.72,704.0,0.26072116]
[1737017756229,0.28339851,705.72,703.99,0.26072116]
[1737017756434,0.28339851,705.72,704.0,0.26072116]
[1737017756738,0.28339851,705.72,704.01,0.26072116]
[1737017757038,0.28339851,705.72,704.02,0.26075354]
[1737017757238,0.28339851,705.72,704.01,0.26075354]
[1737017757539,0.28339851,705.72,704.05,1.04811293]
[1737017757739,0.28339851,705.72,704.06,0.26075354]
[1737017758740,0.28339851,705.72,704.07,0.26075354]
[1737017759040,0.28339851,705.72,704.08,0.26075354]
[1737017759238,0.28339851,705.72,704.2,1.04811293]
[1737017759540,0.28339851,705.72,704.21,0.86423194]
[1737017759741,0.28339851,705.72,704.22,0.60344701]
[1737017760041,0.28339851,705.72,704.23,0.26065526]
[1737017760244,0.28339851,705.72,704.33,1.04811293]
[1737017760742,0.28339851,705.72,704.34,0.26065526]
[1737017761339,0.28339851,705.72,704.38,1.04811293]
[1737017761538,0.28339851,705.72,704.39,0.26065526]
[1737017761736,0.28339851,705.72,704.4,0.26064514]
[1737017761936,0.28339851,705.72,704.39,0.26064514]
[1737017762137,0.28339851,705.72,704.4,0.26064514]
[1737017762440,0.28339851,705.72,704.38,1.04811293]
[1737017762644,0.28339851,705.72,704.41,0.26064574]
[1737017762940,0.28339851,705.72,704.42,0.26064574]
[1737017763137,0.28339851,705.72,704.4,0.26064574]
[1737017763338,0.28339851,705.72,704.43,0.26064574]
[1737017763542,0.28339851,705.72,704.42,1.04811293]
[1737017763842,0.28339851,705.72,704.43,0.26064574]
[1737017764445,0.28339851,705.72,704.47,1.04811293]
[1737017764743,0.28339851,705.72,704.48,0.26068394]
[1737017765237,0.28339851,705.72,704.47,1.04811293]
[1737017765437,0.28339851,705.72,704.38,1.04811293]
[1737017765642,0.28339851,705.72,704.39,0.26070675]
[1737017766744,0.28339851,705.72,704.34,0.26070675]
[1737017766938,0.28339851,705.72,704.4,0.26070675]
[1737017767142,0.28339851,705.72,704.41,0.26070675]
[1737017767342,0.28339851,705.72,704.33,1.04811293]
[1737017767543,0.28339851,705.72,704.43,1.04811293]
[1737017767745,0.28339851,705.72,704.44,0.26068945]
[1737017768244,0.28339851,705.72,704.45,0.26069242]
[1737017768441,0.28339851,705.72,704.44,0.26069242]
[1737017768645,0.28339851,705.72,704.07,1.04811293]
[1737017768646,0.28339851,705.72,704.45,1.30880535]
[1737017768846,0.28339851,705.72,704.46,0.26069242]
[1737017769946,0.28339851,705.72,704.47,0.26069242]
[1737017770141,0.28339851,705.72,704.48,0.26071363]
[1737017770445,0.28339851,705.72,704.45,0.26071363]
[1737017770647,0.28339851,705.72,704.46,0.26071363]
[1737017771039,0.28339851,705.72,704.47,0.26071363]
[1737017771240,0.28339851,705.72,704.44,0.26071363]
[1737017771446,0.28339851,705.72,704.45,0.26071363]
[1737017771747,0.28339851,705.72,704.0,1.156]